bitfinex-derivatives/quotes_ETHF0:USTF0_20260119
["timestamp","ask_amount","ask_price","bid_price","bid_amount"]
[1768851286609,0.00274745,3221.4,3220.2,0.29142741]
[1768851286821,0.86090658,3221.3,3220.2,0.29142741]
[1768851287012,0.00274745,3221.4,3220.2,0.29142741]
[1768851287210,0.86099515,3221.3,3220.2,0.29142741]
[1768851287408,0.00274745,3221.4,3220.2,0.29142741]
[1768851287607,0.86099499,3221.3,3220.2,0.29142741]
[1768851287821,0.00274745,3221.4,3220.2,0.29142741]
[1768851288018,0.86099498,3221.3,3220.2,0.29142741]
[1768851288220,0.00274745,3221.4,3220.2,0.29142741]
[1768851288520,0.861106,3221.3,3220.2,0.29142741]
[1768851288718,0.00274745,3221.4,3220.2,0.29142741]
[1768851288912,0.86110165,3221.3,3220.2,0.29142741]
[1768851289218,0.00274745,3221.4,3220.2,0.29142741]
[1768851289406,0.8612254,3221.3,3220.2,0.29142741]
[1768851289606,0.00274745,3221.4,3220.2,0.29142741]
[1768851289808,0.86122539,3221.3,3220.2,0.29142741]
[1768851290104,0.86135803,3221.2,3220.2,0.29142741]
[1768851290306,0.00274745,3221.4,3220.2,0.29142741]
[1768851290503,0.86135803,3221.3,3220.2,0.29142741]
[1768851290703,0.86135803,3221.2,3220.2,0.29142741]
[1768851290912,0.00274745,3221.4,3220.2,0.29142741]
[1768851291112,0.86135695,3221.3,3220.2,0.29142741]
[1768851291314,0.86135695,3221.2,3220.2,0.29142741]
[1768851291513,0.00274745,3221.4,3220.2,0.29142741]
[1768851291713,0.86136974,3221.3,3220.2,0.29142741]
[1768851291913,0.86136974,3221.2,3220.2,0.29142741]
[1768851292113,0.00274745,3221.4,3220.2,0.29142741]
[1768851292314,0.86138648,3221.3,3220.2,0.29142741]
[1768851292514,0.86138648,3221.2,3220.2,0.29142741]
[1768851292714,0.00274745,3221.4,3220.2,0.29142741]
[1768851292914,0.86138647,3221.3,3220.2,0.29142741]
[1768851293119,0.86138647,3221.2,3220.2,0.29142741]
[1768851293313,0.14439058,3221.4,3220.2,0.15535]
[1768851293512,0.8618741,3221.3,3220.2,0.15535]
[1768851293713,0.8618741,3221.2,3220.2,0.15535]
[1768851293916,0.14439058,3221.4,3220.2,0.15535]
[1768851294113,0.86187394,3221.3,3220.2,0.15535]
[1768851294321,0.86187394,3221.2,3220.2,0.15535]
[1768851294515,0.14439058,3221.4,3220.2,0.15535]
[1768851294719,0.86195856,3221.3,3220.2,0.15535]
[1768851294921,0.86195856,3221.2,3220.2,0.15535]
[1768851295220,0.00274745,3221.4,3220.3,0.29462468]
[1768851306930,0.00274745,3221.4,3220.3,0.15534]
[1768851309237,0.00274745,3221.4,3220.4,1.28645466]
[1768851309634,0.00274745,3221.4,3220.5,0.13928468]
[1768851309937,0.00274745,3221.4,3220.5,0.14263549]
[1768851311430,0.00274745,3221.4,3220.7,1.28645466]
[1768851313834,0.00274745,3221.4,3220.6,0.13928468]
[1768851318139,0.00274745,3221.4,3220.5,0.15869081]
[1768851327543,0.00274745,3221.4,3220.5,1.57652325]
[1768851330240,0.00274745,3221.4,3220.6,0.15533]
[1768851330445,0.00274745,3221.4,3220.6,0.28670778]
[1768851330640,0.00274745,3221.4,3220.7,0.15533]
[1768851336149,0.00274745,3221.4,3220.8,0.15532]
[1768851341957,1.28645466,3222.0,3220.8,0.29888057]
[1768851342250,0.8622209,3221.9,3220.8,0.29888057]
[1768851342454,0.8622209,3221.8,3220.8,0.29888057]
[1768851342657,1.28645466,3222.0,3220.8,0.29888057]
[1768851342853,0.86214883,3221.9,3220.8,0.29888057]
[1768851343044,0.86214883,3221.8,3220.8,0.29888057]
[1768851344651,2.14860349,3221.8,3220.8,0.29888057]
[1768851344850,1.28645466,3221.8,3220.8,0.15532]
[1768851350166,0.00332106,3221.9,3220.8,0.15532]
[1768851350366,0.8618477,3221.8,3220.8,0.15532]
[1768851350567,1.28977572,3221.9,3220.8,0.15532]
[1768851350767,0.86184778,3221.8,3220.8,0.15532]
[1768851351067,1.28977572,3221.9,3220.8,0.15532]
[1768851351268,0.86184755,3221.8,3220.8,0.15532]
[1768851351566,1.28977572,3221.9,3220.8,0.15532]
[1768851351767,0.86184786,3221.8,3220.8,0.15532]
[1768851351970,1.28977572,3221.9,3220.8,0.15532]
[1768851352171,0.86184784,3221.8,3220.8,0.15532]
[1768851352373,1.28977572,3221.9,3220.8,0.15532]
[1768851352669,1.28645466,3221.7,3220.8,0.15532]
[1768851355776,0.00332106,3221.9,3220.8,0.15532]
[1768851355982,2.14728124,3221.8,3220.8,0.15532]
[1768851356274,1.28645466,3221.8,3220.8,0.15532]
[1768851358079,0.00332106,3221.9,3220.8,0.15532]
[1768851358280,0.86090881,3221.8,3220.8,0.15532]
[1768851358471,0.00332106,3221.9,3220.8,0.15532]
[1768851358670,0.86095076,3221.8,3220.8,0.15532]
[1768851358870,0.00332106,3221.9,3220.8,0.15532]
[1768851359079,0.8609486,3221.8,3220.8,0.15532]
[1768851359281,0.00332106,3221.9,3220.8,0.15532]
[1768851359482,0.86098748,3221.8,3220.8,0.15532]
[1768851359675,0.00332106,3221.9,3220.8,0.15532]
[1768851359877,0.86098748,3221.8,3220.8,0.15532]
[1768851360075,0.00332106,3221.9,3220.8,0.15532]
[1768851360372,0.86098748,3221.8,3220.8,0.15532]
[1768851360571,0.00332106,3221.9,3220.8,0.15532]
[1768851360777,0.86102886,3221.8,3220.8,0.15532]
[1768851361079,0.00332106,3221.9,3220.8,0.15532]
[1768851361272,0.86103269,3221.8,3220.8,0.15532]
[1768851361473,0.00332106,3221.9,3220.8,0.15532]
[1768851361673,0.86104707,3221.8,3220.8,0.15532]
[1768851361870,0.00332106,3221.9,3220.8,0.15532]
[1768851362078,0.86104708,3221.8,3220.8,0.15532]
[1768851362280,0.00332106,3221.9,3220.8,0.15532]
[1768851362477,0.86106521,3221.8,3220.8,0.15532]
[1768851362678,0.00332106,3221.9,3220.8,0.15532]
[1768851362885,0.86106521,3221.8,3220.8,0.15532]
[1768851363082,0.00332106,3221.9,3220.8,0.15532]
[1768851363397,0.86107036,3221.8,3220.8,0.15532]
[1768851363683,0.00332106,3221.9,3220.8,0.15532]
[1768851363882,0.86108712,3221.8,3220.8,0.15532]
[1768851364181,0.00332106,3221.9,3220.8,0.15532]
[1768851364478,0.86111443,3221.8,3220.8,0.15532]
[1768851364678,0.00332106,3221.9,3220.8,0.15532]
[1768851364881,0.86111469,3221.8,3220.5,0.00335081]
[1768851365079,0.13450689,3221.9,3220.5,0.00335081]
[1768851365382,0.86112082,3221.8,3220.5,0.00335081]
[1768851365584,0.13450689,3221.9,3220.5,0.00335081]
[1768851365773,0.86114727,3221.8,3220.5,0.00335081]
[1768851365974,0.13450689,3221.9,3220.5,0.00335081]
[1768851366176,0.86114727,3221.8,3220.5,0.00335081]
[1768851366375,0.13450689,3221.9,3220.5,0.00335081]
[1768851366577,0.86118403,3221.8,3220.5,0.00335081]
[1768851366777,0.13450689,3221.9,3220.5,0.00335081]
[1768851366983,0.86118404,3221.8,3220.5,0.00335081]
[1768851367179,0.13450689,3221.9,3220.5,0.00335081]
[1768851367383,0.8612251,3221.8,3220.5,0.00335081]
[1768851367582,0.8612251,3221.7,3220.5,0.00335081]
[1768851367783,0.13450689,3221.9,3220.5,0.00335081]
[1768851367984,0.8612251,3221.8,3220.5,0.15868081]
[1768851368186,0.13450689,3221.9,3220.5,0.29003935]
[1768851368384,0.86126926,3221.8,3220.5,0.29003935]
[1768851368584,0.86126926,3221.7,3220.5,0.29003935]
[1768851368778,0.13450689,3221.9,3220.6,0.15533]
[1768851368978,0.86126927,3221.8,3220.6,0.15533]
[1768851369182,0.86126927,3221.7,3220.6,0.28668854]
[1768851369382,0.00332106,3221.9,3220.6,0.28668854]
[1768851369585,0.86132571,3221.8,3220.6,0.28668854]
[1768851369786,0.86132571,3221.7,3220.6,0.28668854]
[1768851369984,0.00332106,3221.9,3220.6,0.28668854]
[1768851370185,0.86133011,3221.8,3220.6,0.28668854]
[1768851370386,0.86133011,3221.7,3220.6,0.28668854]
[1768851370688,0.00332106,3221.9,3220.6,0.28668854]
[1768851370888,0.86140643,3221.8,3220.6,0.28668854]
[1768851371087,0.86140643,3221.7,3220.6,0.28668854]
[1768851371289,0.00332106,3221.9,3220.6,0.28668854]
[1768851371589,0.86159119,3221.8,3220.6,0.28668854]
[1768851371788,0.86159119,3221.7,3220.6,0.28668854]
[1768851372088,0.00332106,3221.9,3220.6,0.28668854]
[1768851372289,0.86159163,3221.8,3220.6,0.28668854]
[1768851372489,0.86159163,3221.7,3220.6,0.28668854]
[1768851372792,0.00332106,3221.9,3220.6,0.28668854]
[1768851372992,0.8615915,3221.8,3220.6,0.28668854]
[1768851373288,0.8615915,3221.7,3220.6,0.28668854]
[1768851373485,0.00332106,3221.9,3220.6,0.28668854]
[1768851373686,0.861591,3221.8,3220.6,0.28668854]
[1768851373985,0.861591,3221.7,3220.6,0.28668854]
[1768851374184,0.00332106,3221.9,3220.6,0.28668854]
[1768851374483,0.86159,3221.8,3220.6,0.28668854]
[1768851374683,0.86159,3221.7,3220.6,0.28668854]
[1768851374885,0.00332106,3221.9,3220.6,0.28668854]
[1768851375187,0.86158801,3221.8,3220.6,0.28668854]
[1768851375484,0.86158801,3221.7,3220.6,0.28668854]
[1768851375685,0.00332106,3221.9,3220.6,0.28668854]
[1768851375883,0.86158692,3221.8,3220.6,0.28668854]
[1768851376086,0.86158692,3221.7,3220.6,0.28668854]
[1768851376287,0.00332106,3221.9,3220.6,0.28668854]
[1768851376486,0.86158596,3221.8,3220.6,0.28668854]
[1768851376687,0.86158596,3221.7,3220.6,0.15533]
[1768851376887,0.00332106,3221.9,3220.6,0.15533]
[1768851377090,0.86159522,3221.8,3220.6,0.15533]
[1768851377292,0.86159522,3221.7,3220.6,0.15533]
[1768851377489,0.00332106,3221.9,3220.6,0.15533]
[1768851377785,0.86159238,3221.8,3220.6,0.15533]
[1768851377989,0.86159238,3221.7,3220.6,0.15533]
[1768851378196,0.00332106,3221.9,3220.6,0.15533]
[1768851378397,0.86159125,3221.8,3220.6,0.15533]
[1768851378693,0.86159125,3221.7,3220.6,0.15533]
[1768851378884,0.00332106,3221.9,3220.6,0.15533]
[1768851379092,0.86159125,3221.8,3220.6,0.15533]
[1768851379291,0.86159125,3221.7,3220.6,0.15533]
[1768851379492,0.00332106,3221.9,3220.6,0.15533]
[1768851379692,0.86159039,3221.8,3220.6,0.28668854]
[1768851379893,0.86159039,3221.7,3220.6,0.28668854]
[1768851380198,0.00332106,3221.9,3220.6,0.28668854]
[1768851380394,0.86158889,3221.8,3220.6,0.28668854]
[1768851380594,0.86158889,3221.7,3220.6,0.28668854]
[1768851380794,0.00332106,3221.9,3220.6,0.28668854]
[1768851380996,0.86158863,3221.8,3220.6,0.28668854]
[1768851381198,0.86158863,3221.7,3220.6,0.28668854]
[1768851381394,0.00332106,3221.9,3220.6,0.28668854]
[1768851381595,0.86158797,3221.8,3220.6,0.28668854]
[1768851381798,0.86158797,3221.7,3220.6,0.28668854]
[1768851381994,0.00332106,3221.9,3220.6,0.28668854]
[1768851382199,0.8615881,3221.8,3220.6,0.28668854]
[1768851382498,0.8615881,3221.7,3220.6,0.28668854]
[1768851382698,0.00332106,3221.9,3220.6,0.28668854]
[1768851382901,0.86158725,3221.8,3220.7,0.15532]
[1768851383198,0.86158725,3221.7,3220.7,0.15532]
[1768851383401,0.00332106,3221.9,3220.7,0.15532]
[1768851383595,0.86453385,3221.8,3220.7,0.15532]
[1768851383796,0.86453385,3221.7,3220.7,0.15532]
[1768851383998,0.00332106,3221.9,3220.7,0.15532]
[1768851384298,0.86453407,3221.8,3220.7,0.15532]
[1768851384496,0.86453407,3221.7,3220.7,0.15532]
[1768851384698,0.00332106,3221.9,3220.7,0.15532]
[1768851384898,0.86453491,3221.8,3220.7,0.15532]
[1768851385198,0.86453491,3221.7,3220.7,0.15532]
[1768851385398,0.00332106,3221.9,3220.7,0.15532]
[1768851385604,0.86453627,3221.8,3220.7,0.15532]
[1768851385797,0.86453627,3221.7,3220.7,0.15532]
[1768851385997,0.00332106,3221.9,3220.7,0.15532]
[1768851386198,0.86453627,3221.8,3220.7,0.15532]
[1768851386399,0.86453627,3221.7,3220.7,0.15532]
[1768851386596,0.00332106,3221.9,3220.7,0.15532]
[1768851386900,0.86453655,3221.8,3220.7,0.15532]
[1768851387098,0.86453655,3221.7,3220.7,0.15532]
[1768851387297,0.00332106,3221.9,3220.7,0.15532]
[1768851387507,0.86453745,3221.8,3220.7,0.15532]
[1768851387707,0.86453745,3221.7,3220.7,0.15532]
[1768851387905,0.00332106,3221.9,3220.7,0.15532]
[1768851388110,0.86452874,3221.8,3220.7,0.15532]
[1768851388306,0.86452874,3221.7,3220.7,0.15532]
[1768851388494,0.00332106,3221.9,3220.7,0.15532]
[1768851388700,0.86452405,3221.8,3220.7,0.15532]
[1768851388994,0.86452405,3221.7,3220.7,0.15532]
[1768851389194,0.00332106,3221.9,3220.7,0.15532]
[1768851389398,0.86451778,3221.8,3220.7,0.15532]
[1768851389599,0.86451778,3221.7,3220.7,0.15532]
[1768851389806,0.00332106,3221.9,3220.7,0.15532]
[1768851390106,0.86451778,3221.8,3220.7,0.15532]
[1768851390305,0.86451778,3221.7,3220.7,0.15532]
[1768851390609,0.00332106,3221.9,3220.8,0.15532]
[1768851390806,0.86451422,3221.8,3220.8,0.15532]
[1768851391008,0.86451422,3221.7,3220.8,0.15532]
[1768851391210,0.00332106,3221.9,3220.8,0.15532]
[1768851391505,0.8645085,3221.8,3220.8,0.15532]
[1768851391701,0.8645085,3221.7,3220.8,0.15532]
[1768851391912,0.00332106,3221.9,3220.8,0.15532]
[1768851392112,0.86450181,3221.8,3220.8,0.15532]
[1768851392304,0.86450181,3221.7,3220.8,0.15532]
[1768851392506,0.00332106,3221.9,3220.8,0.15532]
[1768851392706,0.8644908,3221.8,3220.8,0.15532]
[1768851392907,0.8644908,3221.7,3220.8,0.15532]
[1768851393106,0.00332106,3221.9,3220.8,0.15532]
[1768851393306,0.86448227,3221.8,3220.8,0.15532]
[1768851393506,0.86448227,3221.7,3220.8,0.15532]
[1768851393708,0.00332106,3221.9,3220.8,0.15532]
[1768851393908,0.86449098,3221.8,3220.8,0.15532]
[1768851394102,0.86449098,3221.7,3220.8,0.15532]
[1768851394306,0.00332106,3221.9,3220.8,0.15532]
[1768851394509,0.86448891,3221.8,3220.8,0.15532]
[1768851394711,0.86448891,3221.7,3220.8,0.15532]
[1768851395008,0.00332106,3221.9,3220.8,0.15532]
[1768851395305,0.86448726,3221.8,3220.8,0.15532]
[1768851395505,0.86448726,3221.7,3220.8,0.15532]
[1768851395701,0.00332106,3221.9,3220.8,0.15532]
[1768851395902,0.86448726,3221.8,3220.8,0.15532]
[1768851396202,0.86448726,3221.7,3220.8,0.15532]
[1768851396401,0.00332106,3221.9,3220.8,0.15532]
[1768851396608,0.86448586,3221.8,3220.8,0.15532]
[1768851396802,0.86448586,3221.7,3220.8,0.15532]
[1768851397010,0.00332106,3221.9,3220.8,0.15532]
[1768851397207,0.86448639,3221.8,3220.8,0.15532]
[1768851397412,0.86448639,3221.7,3220.8,0.15532]
[1768851397612,0.00332106,3221.9,3220.8,0.15532]
[1768851397812,0.86450355,3221.8,3220.8,0.15532]
[1768851398108,0.86450355,3221.7,3220.8,0.15532]
[1768851398304,0.00332106,3221.9,3220.8,0.15532]
[1768851398511,0.86449951,3221.8,3220.8,0.15532]
[1768851398713,0.86449951,3221.7,3220.8,0.15532]
[1768851399017,0.00332106,3221.9,3220.8,0.15532]
[1768851399221,0.86449713,3221.8,3220.8,0.15532]
[1768851399410,0.86449713,3221.7,3220.8,0.15532]
[1768851399611,0.00332106,3221.9,3220.8,0.15532]
[1768851399812,0.86449713,3221.8,3220.8,0.15532]
[1768851400012,0.86449713,3221.7,3220.8,0.15532]
[1768851400217,0.00332106,3221.9,3220.8,0.15532]
[1768851400419,0.86449306,3221.8,3220.8,0.15532]
[1768851400718,0.86449306,3221.7,3220.8,0.15532]
[1768851400913,0.00332106,3221.9,3220.8,0.15532]
[1768851401109,0.86450519,3221.8,3220.8,0.15532]
[1768851401313,0.86450519,3221.7,3220.8,0.15532]
[1768851401523,0.00332106,3221.9,3220.8,0.15532]
[1768851401710,0.86448854,3221.8,3220.8,0.15532]
[1768851401912,0.86448854,3221.7,3220.8,0.15532]
[1768851402113,0.00332106,3221.9,3220.8,0.15532]
[1768851402313,0.86447618,3221.8,3220.8,0.15532]
[1768851402519,0.86447618,3221.7,3220.8,0.15532]
[1768851402719,0.00332106,3221.9,3220.8,0.15532]
[1768851403018,0.86447618,3221.8,3220.8,0.15532]
[1768851403320,0.86447618,3221.7,3220.8,0.15532]
[1768851403523,0.00332106,3221.9,3220.8,0.15532]
[1768851403724,0.86446607,3221.8,3220.8,0.15532]
[1768851403920,0.86446607,3221.7,3220.8,0.15532]
[1768851404119,0.00332106,3221.9,3220.8,0.15532]
[1768851404320,0.86445538,3221.8,3220.8,0.15532]
[1768851404521,0.86445538,3221.7,3220.8,0.15532]
[1768851404819,0.00332106,3221.9,3220.8,0.15532]
[1768851405020,0.86445538,3221.8,3220.8,0.15532]
[1768851405321,0.00332106,3221.9,3220.8,0.15532]
[1768851405322,0.86445538,3221.7,3220.8,0.15532]
[1768851405523,0.00332106,3221.9,3220.8,0.15532]
[1768851405724,0.86444771,3221.8,3220.8,0.15532]
[1768851405920,0.86444771,3221.7,3220.8,0.15532]
[1768851406126,0.00332106,3221.9,3220.8,0.15532]
[1768851406326,0.86444211,3221.8,3220.8,0.15532]
[1768851406519,0.86444211,3221.7,3220.8,0.15532]
[1768851406721,0.00332106,3221.9,3220.8,0.15532]
[1768851406919,0.86444208,3221.8,3220.8,0.15532]
[1768851407119,0.86444208,3221.7,3220.8,0.15532]
[1768851407329,0.00332106,3221.9,3220.8,0.15532]
[1768851407529,0.86443631,3221.8,3220.8,0.15532]
[1768851407732,0.86443631,3221.7,3220.8,0.15532]
[1768851408030,0.00332106,3221.9,3220.8,0.15532]
[1768851408230,0.86443142,3221.8,3220.8,0.15532]
[1768851408432,0.86443142,3221.7,3220.8,0.15532]
[1768851408623,0.00332106,3221.9,3220.8,0.15532]
[1768851408824,0.86443126,3221.8,3220.8,0.15532]
[1768851409024,0.86443126,3221.7,3220.8,0.15532]
[1768851409224,0.00332106,3221.9,3220.8,0.15532]
[1768851409433,0.86442748,3221.8,3220.8,0.15532]
[1768851409634,0.86442748,3221.7,3220.8,0.15532]
[1768851409830,0.00332106,3221.9,3220.8,0.15532]
[1768851410134,0.86442204,3221.8,3220.8,0.15532]
[1768851410331,0.86442204,3221.7,3220.8,0.15532]
[1768851410532,0.00332106,3221.9,3220.8,0.15532]
[1768851410737,0.86441877,3221.8,3220.8,0.15532]
[1768851410937,0.86441877,3221.7,3220.8,0.15532]
[1768851411138,0.14592316,3221.9,3220.8,0.15532]
[1768851411330,0.86442557,3221.8,3220.8,0.15532]
[1768851411533,0.86442557,3221.7,3220.8,0.15532]
[1768851411733,0.14592316,3221.9,3220.5,0.00335081]
[1768851411934,0.86442557,3221.8,3220.5,0.00335081]
[1768851412134,0.86442557,3221.7,3220.5,0.00335081]
[1768851412343,0.14592316,3221.9,3220.5,0.00335081]
[1768851412534,0.86441961,3221.8,3220.5,0.00335081]
[1768851412734,0.86441961,3221.7,3220.5,0.00335081]
[1768851413042,0.14592316,3221.9,3220.5,0.00335081]
[1768851413237,0.86444673,3221.8,3220.5,0.00335081]
[1768851413437,0.86444673,3221.7,3220.5,0.00335081]
[1768851413638,0.14592316,3221.9,3220.5,0.00335081]
[1768851413840,0.86445653,3221.8,3220.5,0.00335081]
[1768851414036,0.86445653,3221.7,3220.5,0.00335081]
[1768851414236,0.14592316,3221.9,3220.5,0.00335081]
[1768851414435,0.86445181,3221.8,3220.5,0.00335081]
[1768851414634,0.86445181,3221.7,3220.5,0.00335081]
[1768851414834,0.14592316,3221.9,3220.5,0.00335081]
[1768851415035,0.86444745,3221.8,3220.5,0.00335081]
[1768851415235,0.86444745,3221.7,3220.5,0.00335081]
[1768851415431,0.14592316,3221.9,3220.5,0.00335081]
[1768851415634,0.86444527,3221.8,3220.5,0.00335081]
[1768851415835,0.86444527,3221.7,3220.5,0.00335081]
[1768851416035,0.14592316,3221.9,3220.5,0.00335081]
[1768851416230,0.86444323,3221.8,3220.5,0.00335081]
[1768851416441,0.86444323,3221.7,3220.5,0.00335081]
[1768851416637,0.14592316,3221.9,3220.5,0.00335081]
[1768851416837,0.86444323,3221.8,3220.5,0.00335081]
[1768851417042,0.86444323,3221.7,3220.5,0.00335081]
[1768851417343,0.14592316,3221.9,3220.5,0.00335081]
[1768851417545,0.86444558,3221.8,3220.5,0.00335081]
[1768851417737,0.86444558,3221.7,3220.5,0.00335081]
[1768851417935,0.14592316,3221.9,3220.5,0.00335081]
[1768851418135,0.86444605,3221.8,3220.5,0.00335081]
[1768851418335,0.86444605,3221.7,3220.5,0.00335081]
[1768851418536,0.14592316,3221.9,3220.5,0.00335081]
[1768851418736,0.86444665,3221.8,3220.5,0.00335081]
[1768851418940,0.86444665,3221.7,3220.5,0.00335081]
[1768851419136,0.14592316,3221.9,3220.5,0.00335081]
[1768851419337,0.8644492,3221.8,3220.5,0.00335081]
[1768851419538,0.8644492,3221.7,3220.5,0.00335081]
[1768851419836,0.14592316,3221.9,3220.5,0.00335081]
[1768851420038,0.8644492,3221.8,3220.5,0.00335081]
[1768851420238,0.8644492,3221.7,3220.5,0.00335081]
[1768851420434,0.14592316,3221.9,3220.5,0.00335081]
[1768851420648,0.86445246,3221.8,3220.5,0.00335081]
[1768851420846,0.86445246,3221.7,3220.5,0.00335081]
[1768851421046,0.14592316,3221.9,3220.5,0.00335081]
[1768851421247,0.86445732,3221.8,3220.5,0.00335081]
[1768851421446,0.86445732,3221.7,3220.5,0.00335081]
[1768851421651,0.14592316,3221.9,3220.5,0.00335081]
[1768851421850,0.86445798,3221.8,3220.5,0.00335081]
[1768851422148,0.86445798,3221.7,3220.5,0.00335081]
[1768851422335,0.14592316,3221.9,3220.5,0.00335081]
[1768851422541,0.86447002,3221.8,3220.5,0.00335081]
[1768851422742,0.86447002,3221.7,3220.5,0.00335081]
[1768851422944,0.14592316,3221.9,3220.5,0.00335081]
[1768851423137,0.99467687,3221.8,3220.5,0.00335081]
[1768851423341,0.86447002,3221.7,3220.5,0.00335081]
[1768851424549,0.13020685,3221.6,3220.5,0.00335081]
[1768851424755,0.13020685,3221.3,3220.5,0.00335081]
[1768851425054,1.28704274,3220.8,3219.9,0.15536]
[1768851425959,1.28704274,3220.8,3219.9,0.15820703]
[1768851427156,1.28704274,3220.8,3219.9,0.00284703]
[1768851428044,1.28704274,3220.9,3219.9,0.00284703]
[1768851428259,1.41724959,3221.1,3219.9,0.00284703]
[1768851428460,0.86231425,3221.0,3219.9,0.00284703]
[1768851428757,1.41724959,3221.1,3219.9,0.00284703]
[1768851428960,0.86228249,3221.0,3219.9,0.00284703]
[1768851429159,1.41724959,3221.1,3219.9,0.00284703]
[1768851430663,1.28704274,3220.9,3219.9,0.00284703]
[1768851437264,1.41724959,3221.1,3219.9,0.00284703]
[1768851443471,1.28704274,3220.9,3219.9,0.00284703]
[1768851445166,1.41997404,3220.9,3219.9,0.00284703]
[1768851451374,1.28704274,3221.1,3219.9,0.00284703]
[1768851451571,0.86297262,3221.0,3219.9,0.00284703]
[1768851451880,1.28704274,3221.1,3219.9,0.00284703]
[1768851452272,0.86332962,3221.0,3219.9,0.00284703]
[1768851452471,1.41997404,3221.1,3219.9,0.00284703]
[1768851452666,0.86332993,3221.0,3219.9,0.00284703]
[1768851452866,1.41997404,3221.1,3219.9,0.00284703]
[1768851453068,0.86332993,3221.0,3219.9,0.00284703]
[1768851453373,1.41997404,3221.1,3219.9,0.00284703]
[1768851453572,0.86385273,3221.0,3219.9,0.00284703]
[1768851453871,1.41997404,3221.1,3219.9,0.00284703]
[1768851454072,0.99678403,3221.0,3219.9,0.00284703]
[1768851454273,0.86495756,3220.9,3219.9,0.00284703]
[1768851454474,0.86495756,3220.8,3219.9,0.00284703]
[1768851454668,1.28704274,3220.9,3219.9,0.00284703]
[1768851454867,0.86496392,3220.8,3219.9,0.00284703]
[1768851455068,1.28704274,3220.9,3219.9,0.00284703]
[1768851455276,0.86496431,3220.8,3219.9,0.00284703]
[1768851455478,1.28704274,3220.9,3219.9,0.00284703]
[1768851455668,0.86495987,3220.8,3219.9,0.00284703]
[1768851455867,1.28704274,3220.9,3219.9,0.00284703]
[1768851456068,0.86495987,3220.8,3219.9,0.00284703]
[1768851456275,1.28704274,3220.9,3219.9,0.00284703]
[1768851456476,0.8649476,3220.8,3219.9,0.00284703]
[1768851456671,1.28704274,3220.9,3219.9,0.00284703]
[1768851456871,0.8649476,3220.8,3219.9,0.00284703]
[1768851457075,1.28704274,3220.9,3219.9,0.00284703]
[1768851457268,0.8649476,3220.8,3219.9,0.00284703]
[1768851457467,1.28704274,3220.9,3219.9,0.00284703]
[1768851457668,0.8649449,3220.8,3219.9,0.00284703]
[1768851457878,1.28704274,3220.9,3219.9,0.00284703]
[1768851458079,0.8649449,3220.8,3219.9,0.00284703]
[1768851458274,1.28704274,3220.9,3219.9,0.00284703]
[1768851458473,0.86494396,3220.8,3219.9,0.00284703]
[1768851458674,1.28704274,3220.9,3219.9,0.00284703]
[1768851458875,1.28704274,3220.7,3219.9,0.00284703]
[1768851459480,1.28704274,3220.9,3219.9,0.00284703]
[1768851459672,0.8649481,3220.8,3219.9,0.00284703]
[1768851459873,1.28704274,3220.9,3219.9,0.00284703]
[1768851460073,0.86494794,3220.8,3219.9,0.00284703]
[1768851460273,1.28704274,3220.9,3219.9,0.00284703]
[1768851460483,0.86494952,3220.8,3219.9,0.00284703]
[1768851460681,1.28704274,3220.9,3219.9,0.00284703]
[1768851460981,0.86494952,3220.8,3219.9,0.00284703]
[1768851461181,1.28704274,3220.9,3219.9,0.00284703]
[1768851461381,0.86495503,3220.8,3219.9,0.00284703]
[1768851461579,1.28704274,3220.9,3219.9,0.00284703]
[1768851461780,0.86495503,3220.8,3219.9,0.00284703]
[1768851461975,1.28704274,3220.9,3219.9,0.00284703]
[1768851462177,0.86495503,3220.8,3219.9,0.00284703]
[1768851462375,1.28704274,3220.9,3219.9,0.00284703]
[1768851462584,0.86495878,3220.8,3219.9,0.00284703]
[1768851462771,1.28704274,3220.9,3219.9,0.00284703]
[1768851462975,0.86495878,3220.8,3219.9,0.00284703]
[1768851463176,1.28704274,3220.9,3219.9,0.00284703]
[1768851463377,0.86496294,3220.8,3219.9,0.00284703]
[1768851463577,1.28704274,3220.9,3219.9,0.00284703]
[1768851463779,0.86496327,3220.8,3219.9,0.00284703]
[1768851463975,1.28704274,3220.9,3219.9,0.00284703]
[1768851464179,0.86496284,3220.8,3219.9,0.00284703]
[1768851464381,1.28704274,3220.9,3219.9,0.00284703]
[1768851464580,0.86496757,3220.8,3219.9,0.00284703]
[1768851464783,1.28704274,3220.9,3219.9,0.00284703]
[1768851464981,0.86496773,3220.8,3219.9,0.00284703]
[1768851465187,1.28704274,3220.9,3219.9,0.00284703]
[1768851465383,0.86496989,3220.8,3219.9,0.00284703]
[1768851465586,1.28704274,3220.9,3219.9,0.00284703]
[1768851465886,0.86497005,3220.8,3219.9,0.00284703]
[1768851466185,1.28704274,3220.9,3219.9,0.00284703]
[1768851466386,0.86497334,3220.8,3219.9,0.00284703]
[1768851466588,1.28704274,3220.9,3219.9,0.00284703]
[1768851466790,0.86497012,3220.8,3219.9,0.00284703]
[1768851466987,1.28704274,3220.9,3219.9,0.00284703]
[1768851467286,0.86497012,3220.8,3219.9,0.00284703]
[1768851467486,1.28704274,3220.9,3219.9,0.00284703]
[1768851467686,0.8649722,3220.8,3219.9,0.00284703]
[1768851467886,1.28704274,3220.9,3219.9,0.00284703]
[1768851468089,0.86497232,3220.8,3219.9,0.00284703]
[1768851468290,1.28704274,3220.9,3219.9,0.00284703]
[1768851468490,0.86497254,3220.8,3219.9,0.00284703]
[1768851468690,1.28704274,3220.9,3219.9,0.00284703]
[1768851468887,0.8649727,3220.8,3219.9,0.00284703]
[1768851469087,1.28704274,3220.9,3219.9,0.00284703]
[1768851469287,0.86497511,3220.8,3219.9,0.00284703]
[1768851469491,1.28704274,3220.9,3219.9,0.00284703]
[1768851469691,0.86497501,3220.8,3219.9,0.00284703]
[1768851469992,1.28704274,3220.9,3219.9,0.00284703]
[1768851470182,0.86497501,3220.8,3219.9,0.00284703]
[1768851470382,1.28704274,3220.9,3219.9,0.00284703]
[1768851470593,0.86497516,3220.8,3219.9,0.00284703]
[1768851470782,1.28704274,3220.9,3219.9,0.00284703]
[1768851470979,0.86497499,3220.8,3219.9,0.00284703]
[1768851471193,1.42827624,3220.9,3219.9,0.00284703]
[1768851471491,0.86497521,3220.8,3219.9,0.00284703]
[1768851471692,1.42827624,3220.9,3219.9,0.00284703]
[1768851471881,0.86497521,3220.8,3219.9,0.00284703]
[1768851472078,1.42827624,3220.9,3219.9,0.00284703]
[1768851472381,0.86497537,3220.8,3219.9,0.00284703]
[1768851472583,1.42827624,3220.9,3219.9,0.00284703]
[1768851472783,0.14244898,3220.7,3219.9,0.00284703]
[1768851472994,1.28704274,3220.1,3219.2,2.78104097]
[1768851473194,1.28704274,3220.1,3219.2,0.1554]